fUSD/lending_fUSD_20240917
["ID","MTS","AMOUNT","RATE_DAILY","PERIOD"]
[338406110,1726596723488,545.24489,0.00012148,2]
[338406111,1726596726387,250.0,0.00012148,2]
[338406112,1726596754046,409.17,0.00012106,2]
[338406113,1726596886662,250.0,0.00012074,2]
[338406114,1726596912593,302.4,0.00012072,2]
[338406115,1726596919656,2000.0,0.00012072,2]
[338406116,1726596925967,176.93,0.00012054,2]
[338406117,1726596953591,226.11,0.00012058,2]
[338406118,1726596998261,300.755,0.0001264,2]
[338406119,1726597009134,165.47941094,0.0001264,2]
[338406120,1726597017185,150.24,0.00012057,2]
[338406121,1726597134573,1072.66,0.0001014,2]
[338406122,1726597136656,1072.66,0.00012404,2]
[338406123,1726597169974,152.73,0.00010959,2]
[338406124,1726597171104,250.0,0.00012031,2]
[338406125,1726597219642,386.89,0.00012053,2]
[338406126,1726597256979,23900.0,0.00012063,2]
[338406127,1726597322442,250.0,0.00012052,2]
[338406128,1726597367201,155.25,0.00012039,2]
[338406129,1726597367641,155.25,0.00012046,2]
[338406130,1726597367863,155.25,0.00012053,2]
[338406131,1726597368292,155.25,0.00012059,2]
[338406132,1726597368427,155.25,0.00012066,2]
[338406133,1726597368676,155.25,0.00012073,2]
[338406134,1726597368926,155.25,0.0001208,2]
[338406135,1726597369206,155.25,0.00012086,2]
[338406136,1726597369449,155.25,0.00012093,2]
[338406137,1726597369725,155.25,0.000121,2]
[338406138,1726597413854,758.08,0.00012048,2]
[338406139,1726597457056,299.24,0.0001203,2]
[338406140,1726597506494,250.0,0.00012065,2]
[338406141,1726597517503,200.0,0.00012075,2]
[338406142,1726597534724,229.45669635,0.0001,2]
[338406143,1726597561708,160.93198593,9e-05,2]
[338406144,1726597577730,1050.0,0.00011,2]
[338406145,1726597588552,156.62,0.00012639,2]
[338406146,1726597601638,638.57,0.00012061,2]
[338406147,1726597637923,205.0,9.8e-05,2]
[338406148,1726597640197,1033.73,0.0001017,2]
[338406149,1726597640424,1033.73,0.00012434,2]
[338406150,1726597642469,245.74919256,0.000101,2]
[338406151,1726597643621,169.18,0.00012088,2]
[338406152,1726597658935,152.07,0.00010959,2]
[338406154,1726597677643,15481.41751108,0.0001,2]
[338406155,1726597681025,250.0,0.00012009,2]
[338406156,1726597681993,1337.63802778,0.00012,2]
[338406157,1726597691738,14955.96631454,0.000109,2]
[338406160,1726597715724,211.63202831,0.0001,2]
[338406182,1726597832674,-243.1050947,0.0001265,2]
[338406184,1726597832684,-300.0,0.00012699,2]
[338406186,1726597832694,-223.60612014,0.000127,2]
[338406188,1726597832707,-776.39387986,0.000127,2]
[338406190,1726597832716,-1462.0,0.000127,2]
[338406192,1726597832726,-603.20586587,0.000127,2]
[338406194,1726597832737,-369.0,0.000127,2]
[338406197,1726597832759,-27.79413413,0.000127,2]
[338406199,1726597832769,-150.0,0.00012732,2]
[338406201,1726597832778,-1035.15115871,0.0001274,2]
[338406203,1726597832788,-73.77216022,0.0001274,2]
[338406205,1726597832799,-966.00508367,0.0001274,2]
[338406207,1726597832810,-1115.58286548,0.0001274,2]
[338406209,1726597832819,-150.0,0.0001275,2]
[338406210,1726597832829,-700.0,0.000128,4]
[338406211,1726597832838,-150.0,0.0001282,2]
[338406212,1726597832848,-150.0,0.00012839,2]
[338406213,1726597832857,-5348.55,0.0001287,2]
[338406214,1726597832866,-317.70655395,0.0001287,2]
[338406215,1726597832877,-182.28344605,0.0001287,2]
[338406216,1726597832886,-150.0,0.00012871,2]
[338406217,1726597832895,-237.71655389,0.00012872,2]
[338406218,1726597832906,-351.899999,0.00012872,2]
[338406219,1726597832917,-176.76309226,0.00012872,2]
[338406220,1726597832927,-2316.28674868,0.00012872,2]
[338406221,1726597832938,-9027.01825,0.00012872,2]
[338406222,1726597832956,-299.78144014,0.00012872,2]
[338406223,1726597832968,-8356.90356118,0.00012872,2]
[338406224,1726597832977,-1438.58,0.00012872,2]
[338406225,1726597832986,-150.0,0.00012882,2]
[338406226,1726597832995,-302.59,0.000129,2]
[338406227,1726597833004,-455.4335,0.000129,2]
[338406228,1726597833014,-184.18222609,0.000129,2]
[338406229,1726597833022,-150.0,0.000129,2]
[338406230,1726597833032,-717.5346,0.000129,2]
[338406231,1726597833042,-4122.74249011,0.000129,2]
[338406232,1726597833051,-1500.0,0.000129,4]
[338406233,1726597833062,-324.63891237,0.000129,2]
[338406234,1726597833071,-171.3567133,0.000129,2]
[338406235,1726597833080,-533.1887631,0.000129,2]
[338406236,1726597833089,-1150.0,0.000129,2]
[338406237,1726597833099,-355.34774474,0.000129,2]
[338406238,1726597833108,-150.0,0.00012935,2]
[338406239,1726597833118,-150.0,0.00012966,2]
[338406240,1726597833130,-617.831,0.0001297,2]
[338406241,1726597833139,-166.728,0.0001297,2]
[338406242,1726597833148,-500.0,0.00012973,2]
[338406243,1726597833157,-179.18953328,0.00012973,2]
[338406244,1726597833167,-151.51,0.0001299,2]
[338406245,1726597833176,-435.7556922,0.00012994,2]
[338406246,1726597833185,-2161.3721642,0.00012994,2]
[338406247,1726597833195,-5964.39349958,0.00012994,2]
[338406248,1726597833206,-1437.62195802,0.00012994,2]
[338406249,1726597833217,-39560.7564032,0.00012994,2]
[338406250,1726597833227,-1206.7495611,0.00012994,2]
[338406251,1726597833236,-15959.36455867,0.00012999,2]
[338406252,1726597833258,-92.07845667,0.00012999,2]
[338406253,1726597833268,-500.0,0.00012999,2]
[338406254,1726597833277,-363.29661692,0.00012999,2]
[338406255,1726597833288,-136.70338308,0.00012999,2]
[338406256,1726597833298,-500.0,0.00012999,2]
[338406257,1726597833307,-500.0,0.00012999,2]
[338406258,1726597833317,-500.0,0.00012999,2]
[338406259,1726597833326,-227.12938384,0.00012999,2]
[338406260,1726597833335,-500.0,0.00012999,2]
[338406261,1726597833344,-436.20307847,0.00012999,2]
[338406262,1726597833354,-500.0,0.00012999,2]
[338406263,1726597833363,-500.0,0.00012999,2]
[338406264,1726597833372,-500.0,0.00012999,2]
[338406265,1726597833381,-500.0,0.00012999,2]
[338406266,1726597833390,-500.0,0.00012999,2]
[338406267,1726597833400,-500.0,0.00012999,2]
[338406268,1726597833409,-230.178446,0.00012999,2]
[338406269,1726597833419,-500.0,0.00012999,2]
[338406270,1726597833427,-500.0,0.00012999,2]
[338406271,1726597833438,-500.0,0.00012999,2]
[338406272,1726597833447,-500.0,0.00012999,2]
[338406273,1726597833456,-500.0,0.00012999,2]
[338406274,1726597833465,-500.0,0.00012999,2]
[338406275,1726597833474,-500.0,0.00012999,2]
[338406276,1726597833483,-500.0,0.00012999,2]
[338406277,1726597833492,-500.0,0.00012999,2]
[338406278,1726597833501,-354.88755744,0.00012999,2]
[338406279,1726597833510,-1160.57,0.00013,13]
[338406280,1726597833520,-288698.43687003,0.00013,2]
[338406281,1726597833530,-1000.0,0.00013,13]
[338406282,1726597833539,-2000.0,0.00013,2]
[338406283,1726597833548,-200.0,0.00013,2]
[338406284,1726597833559,-4827.45922204,0.00013,2]
[338406285,1726597833568,-2000.0,0.00013,2]
[338406286,1726597833578,-118874.0195732,0.00013,2]
[338406287,1726597833589,-344285.5110599,0.00013,2]
[338406288,1726597833604,-4676.89908156,0.00013,2]
[338406289,1726597833618,-481.470523,0.00013,2]
[338406290,1726597833630,-607.83734927,0.00013,2]
[338406291,1726597833641,-2299.76847704,0.00013,2]
[338406292,1726597833660,-2825.42255684,0.00013,2]
[338406293,1726597833671,-900.0,0.00013,2]
[338406294,1726597833682,-470.60202167,0.00013,2]
[338406295,1726597833692,-446.45853724,0.00013,2]
[338406296,1726597833703,-1800.0,0.00013,2]
[338406297,1726597833714,-229958.59939226,0.00013,2]
[338406298,1726597834196,8636.09,0.00012013,2]
[338406302,1726597838287,-237.47651731,0.0001299,2]
[338406303,1726597838298,-13256.22579547,0.00013,2]
[338406304,1726597838310,-200.0,0.00013,2]
[338406305,1726597838320,-236.0398292,0.00013,2]
[338406306,1726597838370,-863.9601708,0.00013,2]
[338406307,1726597838380,-976.12328121,0.00013,2]
[338406308,1726597838392,-364.62071879,0.00013,2]
[338406309,1726597838403,-1374.31879279,0.00013,2]
[338406310,1726597838415,-29166.63838452,0.00013,2]
[338406311,1726597838432,-1382.53570445,0.00013,2]
[338406312,1726597838445,-397.33095442,0.00013,2]
[338406313,1726597838459,-4678.43151661,0.00013,2]
[338406314,1726597838490,-577.87520853,0.00013,2]
[338406315,1726597838504,-19081.35859594,0.00013,2]
[338406316,1726597838516,-16183.61727271,0.00013,2]
[338406317,1726597838528,-1014.6173005,0.00013,2]
[338406318,1726597838544,-2383.05429346,0.00013,2]
[338406319,1726597838556,-611.8,0.00013,2]
[338406320,1726597838596,-1111.14398307,0.00013,2]
[338406321,1726597838607,-544.38170658,0.00013,2]
[338406322,1726597838623,-4946.27439788,0.00013,2]
[338406323,1726597838637,-1470.99385786,0.00013,2]
[338406363,1726597839007,-999.83499872,0.00013,2]
[338406387,1726597840336,-1906.816,0.000129,2]
[338406388,1726597840346,-139459.86004883,0.00013,2]
[338406389,1726597840359,-501.04428,0.00013,2]
[338406390,1726597840372,-22194.97216554,0.00013,2]
[338406391,1726597840390,-1775.32450992,0.00013,2]
[338406392,1726597840401,-284.35257,0.00013,2]
[338406393,1726597840417,-377.35076652,0.00013,2]
[338406394,1726597840428,-950.90019971,0.00013,2]
[338406395,1726597840448,-6147.5526092,0.00013,2]
[338406396,1726597840459,-665.71467956,0.00013,2]
[338406397,1726597840478,-869.59654346,0.00013,2]
[338406398,1726597840577,-704.74178858,0.00013,2]
[338406400,1726597840589,-440.96864,0.00013,2]
[338406401,1726597840600,-425.0,0.00013,2]
[338406402,1726597840611,-1765.19999999,0.00013,2]
[338406405,1726597840623,-300.0,0.00013,2]
[338406406,1726597840634,-24924.90000006,0.00013,2]
[338406408,1726597840645,-594.39655094,0.00013,2]
[338406410,1726597843370,-16663.41501804,0.00013,2]
[338406411,1726597843381,-437.050093,0.00013,2]
[338406412,1726597843393,-363.42500048,0.00013,2]
[338406413,1726597843404,-1008.098861,0.00013,2]
[338406414,1726597843415,-262.32,0.00013,2]
[338406415,1726597843438,-272.22553404,0.00013,2]
[338406416,1726597843453,-243347.66909608,0.00013,2]
[338406417,1726597843462,-962805.78191639,0.00013,2]
[338406419,1726597843477,-267.84,0.00013,2]
[338406420,1726597843488,-15842.67023661,0.00013,2]
[338406426,1726597846446,-859.71593629,0.00013,2]
[338406427,1726597846458,-6271.4,0.00013,2]
[338406428,1726597846490,-537.2269,0.00013,2]
[338406429,1726597846502,-1143.278,0.00013,2]
[338406430,1726597846514,-3274.01606386,0.00013,2]
[338406431,1726597846525,-386.54870469,0.00013,2]
[338406432,1726597846536,-5686.35000001,0.00013,2]
[338406433,1726597846548,-2874.31906734,0.00013,2]
[338406434,1726597846560,-738.8,0.00013,2]
[338406435,1726597846580,-354921.36572819,0.00013,2]
[338406436,1726597846591,-24060.66370396,0.00013,2]
[338406437,1726597846603,-16744.559,0.00013,2]
[338406438,1726597846614,-3490.9987,0.00013,2]
[338406439,1726597846625,-2366.29051615,0.00013,2]
[338406440,1726597846648,-465.20613408,0.00013,2]
[338406442,1726597846773,-1253.16529958,0.00013,2]
[338406443,1726597846785,-322.8916,0.00013,2]
[338406444,1726597846797,-3001.3,0.00013,2]
[338406445,1726597846850,-300.0,0.00013,2]
[338406446,1726597846869,-401.21832325,0.00013,2]
[338406447,1726597871195,618.2,0.00012461,2]
[338406448,1726597890457,380.93,0.00012461,2]
[338406449,1726597959480,250.0,0.00012298,2]
[338406450,1726597982342,393.53,0.00012298,2]
[338406451,1726598097948,168633.22227682,0.00012,2]
[338406452,1726598162814,368.47,0.00012196,2]
[338406453,1726598194827,250.0,0.000122,2]
[338406454,1726598200934,996.76,0.00010282,2]
[338406455,1726598201182,996.76,0.00012546,2]
[338406456,1726598259705,250.0,0.000122,2]
[338406457,1726598269230,3964.15,0.000122,2]
[338406458,1726598411425,190.46,0.00012133,2]
[338406459,1726598512101,250.0,0.00012077,2]
[338406460,1726598610614,1000.0,0.00012096,2]
[338406461,1726598716134,250.0,0.00012034,2]
[338406462,1726598728602,961.47,0.00010129,2]
[338406463,1726598728961,961.47,0.00012393,2]
[338406464,1726598768931,167.0,0.00012445,2]
[338406465,1726598817728,183.11,0.00012066,2]
[338406466,1726598890587,250.0,0.00012069,2]
[338406487,1726599031814,-1500.0,0.00012683,2]
[338406488,1726599031824,-167.0,0.00012693,2]
[338406489,1726599031833,-1080.08401562,0.0001274,2]
[338406490,1726599031842,-179.47116683,0.00012754,2]
[338406491,1726599031853,-393.75313009,0.00012754,2]
[338406492,1726599031862,-150.0,0.00012767,2]
[338406493,1726599031872,-160.39605793,0.00012781,2]
[338406494,1726599031881,-150.0,0.0001279,2]
[338406495,1726599031891,-1075.8716,0.000128,2]
[338406496,1726599031900,-2500.0,0.000128,2]
[338406497,1726599031909,-8227.1488,0.000128,2]
[338406498,1726599031918,-150.0,0.00012805,2]
[338406499,1726599031929,-243.10509471,0.00012847,2]
[338406500,1726599031938,-2068.8629,0.0001287,2]
[338406501,1726599031947,-2068.86291,0.0001287,2]
[338406502,1726599031957,-150.0,0.00012878,2]
[338406503,1726599031966,-900.58,0.00012878,2]
[338406504,1726599031976,-499.99,0.00012878,2]
[338406505,1726599031985,-10000.0,0.00012895,2]
[338406506,1726599031996,-613.354,0.00012899,2]
[338406507,1726599032006,-173.39,0.00012899,2]
[338406508,1726599032015,-150.0,0.00012899,2]
[338406509,1726599032024,-264.8041,0.000129,2]
[338406510,1726599032035,-34803.4372,0.000129,2]
[338406511,1726599032045,-157831.3688,0.000129,2]
[338406512,1726599032054,-1451.1123,0.000129,2]
[338406513,1726599032064,-10930.3533,0.000129,2]
[338406514,1726599032075,-2446.0567,0.000129,2]
[338406515,1726599032084,-2068.86291,0.000129,2]
[338406516,1726599032093,-355.34774474,0.000129,2]
[338406517,1726599032103,-2068.86291,0.0001293,2]
[338406518,1726599032112,-167.0,0.00012958,2]
[338406519,1726599032121,-1000.0,0.0001297,2]
[338406520,1726599032130,-500.0,0.0001297,2]
[338406521,1726599032140,-151.97,0.0001299,2]
[338406522,1726599032149,-801.3506354,0.00012998,2]
[338406523,1726599032158,-3039.0746419,0.00012998,2]
[338406524,1726599032168,-500.0,0.00012999,2]
[338406525,1726599032178,-500.0,0.00012999,2]
[338406526,1726599032187,-362.47701615,0.00012999,2]
[338406528,1726599032196,-1000.0,0.00012999,3]
[338406530,1726599032206,-210677.49326062,0.00013,2]
[338406534,1726599037695,-1131.58053516,0.0001274,2]
[338406535,1726599037704,-2140.32659369,0.00012895,2]
[338406536,1726599037713,-3942.83246813,0.00013,2]
[338406537,1726599037724,-830.76722118,0.00013,2]
[338406538,1726599037736,-253.7732008,0.00013,2]
[338406539,1726599037753,-12210.02450193,0.00013,2]
[338406541,1726599037771,-1080.68345125,0.00013,2]
[338406542,1726599037786,-8208.53520196,0.00013,2]
[338406543,1726599037805,-4480.04824466,0.00013,2]
[338406544,1726599037815,-618.74932003,0.00013,2]
[338406545,1726599037827,-393.01182328,0.00013,2]
[338406546,1726599037872,-26575.56428383,0.00013,2]
[338406547,1726599037884,-777.16020434,0.00013,2]
[338406548,1726599037895,-312.22017178,0.00013,2]
[338406549,1726599039647,-165.10079916,0.000129,2]
[338406550,1726599039658,-20611.12076527,0.00013,2]
[338406551,1726599039670,-701.66503495,0.00013,2]
[338406552,1726599039683,-1209.49724686,0.00013,2]
[338406554,1726599039797,-572.19529931,0.00013,2]
[338406555,1726599039808,-13471.89695095,0.00013,2]
[338406601,1726599043519,-1118.76192603,0.00013,2]
[338406602,1726599043534,-1612.32159237,0.00013,2]
[338406603,1726599043545,-369.04840763,0.00013,2]
[338406604,1726599045671,-4469.87605837,0.00013,2]
[338406605,1726599045680,-710.34553941,0.00013,2]
[338406606,1726599045695,-2000.0,0.00013,2]
[338406607,1726599045704,-200.0,0.00013,2]
[338406608,1726599045714,-895.02347848,0.00013,2]
[338406609,1726599045725,-200.0,0.00013,2]
[338406610,1726599045734,-2068.86291,0.00013,2]
[338406611,1726599045744,-2068.86291,0.00013,2]
[338406612,1726599045754,-200.0,0.00013,2]
[338406613,1726599045763,-158.31767819,0.00013015,2]
[338406614,1726599045774,-1589.32697536,0.00013025,2]
[338406616,1726599066551,189.71,0.00010959,2]
[338406617,1726599121175,200.0,0.00012636,2]
[338406618,1726599121559,-447.37,0.0001267,2]
[338406619,1726599164299,24.43072137,0.00012627,2]
[338406620,1726599164328,754.64927863,0.00012627,2]
[338406621,1726599221247,-1000.93244909,0.0001274,2]
[338406622,1726599221271,-1134.66563567,0.00012765,2]
[338406623,1726599221294,-1208.78877838,0.00012769,2]
[338406624,1726599221316,-626.2606,0.000128,2]
[338406625,1726599221339,-2500.2569,0.000128,2]
[338406626,1726599221364,-2334.39,0.000128,2]
[338406627,1726599221387,-68202.3662,0.000128,2]
[338406628,1726599221409,-214.28,0.00012952,2]
[338406629,1726599243010,896.37,0.0001109,2]
[338406630,1726599272190,200.0,0.00012989,2]
[338406631,1726599273000,1332.45,0.00012989,2]
[338406632,1726599331801,500.0,8.22e-05,2]
[338406633,1726599333381,500.0,0.0001096,2]
[338406634,1726599337015,800.0,8.22e-05,2]
[338406635,1726599338538,800.0,9.59e-05,2]
[338406636,1726599340152,800.0,0.0001096,2]
[338406637,1726599341938,800.0,0.0001233,2]
[338406638,1726599349564,800.0,0.00010198,2]
[338406639,1726599351198,800.0,0.00011568,2]
[338406640,1726599380423,1300.0,9.102e-05,2]
[338406641,1726599381806,1300.0,0.00010472,2]
[338406642,1726599383456,1300.0,0.00011842,2]
[338406643,1726599384575,1050.0,0.00011,2]
[338406645,1726599451527,600.0,8.22e-05,2]
[338406646,1726599453132,600.0,9.59e-05,2]
[338406647,1726599454763,600.0,0.0001096,2]
[338406648,1726599456545,600.0,0.0001233,2]
[338406649,1726599469251,700.0,0.00010198,2]
[338406650,1726599470802,700.0,0.00011568,2]
[338406651,1726599499706,1000.0,0.00010198,2]
[338406652,1726599501150,1000.0,0.00011568,2]
[338406653,1726599636378,1492.01,0.00012581,2]
[338406654,1726599667507,151.65,0.00010959,2]
[338406655,1726599763586,897.94,0.00010836,2]
[338406656,1726599890683,168.54,0.0001257,2]
[338406707,1726599973539,361.81,0.00012598,2]
[338406708,1726599977094,250.0,0.00012613,2]
[338406709,1726600001764,153.07,0.00012566,2]
[338406710,1726600009124,6287.63310657,0.00012581,2]
[338406718,1726600038932,155.19,0.00012598,2]
[338406800,1726600185593,160.0,0.00012577,2]
[338406804,1726600227178,152.99,0.00010959,2]
[338406813,1726600231920,-300.0,0.0001268,2]
[338406814,1726600231930,-500.0,0.00012681,2]
[338406815,1726600231940,-500.0,0.00012681,2]
[338406816,1726600231950,-500.0,0.00012681,2]
[338406817,1726600231960,-500.0,0.00012681,2]
[338406818,1726600231970,-500.0,0.00012681,2]
[338406819,1726600231979,-500.0,0.00012681,2]
[338406820,1726600231988,-500.0,0.00012681,2]
[338406821,1726600231997,-424.84048752,0.00012681,2]
[338406822,1726600232006,-250.0,0.00012726,2]
[338406823,1726600232015,-223.68,0.00012749,2]
[338406824,1726600232025,-270.54997167,0.00012763,2]
[338406825,1726600232036,-916.45635,0.00012763,2]
[338406831,1726600237655,-527.28958145,0.00012763,2]
[338406835,1726600237710,-1258.75000001,0.00012763,2]
[338406836,1726600237722,-7043.18409687,0.00012763,2]
[338406837,1726600237731,-840.0,0.00012766,2]
[338406838,1726600237740,-2000.0,0.00012767,2]
[338406839,1726600237750,-250.0,0.00012767,2]
[338406840,1726600237759,-287.61812799,0.00012814,2]
[338406841,1726600237771,-1217.42187201,0.00012814,2]
[338406842,1726600237780,-499.99,0.00012852,2]
[338406843,1726600237790,-297.11,0.00012855,2]
[338406844,1726600237799,-1402.3649,0.0001289,2]
[338406845,1726600237810,-700.0,0.00012938,2]
[338406846,1726600237819,-1000.0,0.00012938,2]
[338406847,1726600237829,-150.0,0.00012969,2]
[338406848,1726600237839,-1000.0,0.0001297,2]
[338406849,1726600237848,-500.0,0.0001297,2]
[338406850,1726600237858,-1001.25162799,0.00013,2]
[338406851,1726600237869,-98.74837201,0.00013,2]
[338406852,1726600237878,-1000.0,0.00013,2]
[338406853,1726600237888,-568.8485,0.00013,2]
[338406854,1726600237897,-200.0,0.00013025,2]
[338406855,1726600237906,-178.616,0.00013025,2]
[338406856,1726600237915,-617.989,0.00013025,2]
[338406857,1726600237925,-200.0,0.00013025,2]
[338406858,1726600237935,-200.0,0.00013025,2]
[338406859,1726600237946,-4482.09192799,0.00013027,2]
[338406860,1726600237958,-590.34321821,0.00013027,2]
[338406861,1726600237967,-746.4948184,0.00013027,2]
[338406862,1726600237977,-2127.7375393,0.00013036,2]
[338406863,1726600237987,-13542.07512587,0.00013036,2]
[338406864,1726600237998,-358.48667185,0.00013036,2]
[338406865,1726600238017,-352.52727591,0.00013036,2]
[338406866,1726600238035,-752.92921906,0.00013036,2]
[338406867,1726600238046,-556.4527113,0.00013036,2]
[338406868,1726600238081,-487.88912066,0.00013036,2]
[338406892,1726600239987,-3035.02,0.00013036,2]
[338406893,1726600239999,-300.59930483,0.00013036,2]
[338406894,1726600240011,-18213.64828722,0.00013036,2]
[338406895,1726600240021,-897.94,0.000131,2]
[338406896,1726600240031,-460.0,0.000131,2]
[338406897,1726600240040,-359.0,0.000131,2]
[338406898,1726600240050,-200.0,0.00013155,2]
[338406899,1726600240059,-200.0,0.00013155,2]
[338406900,1726600240069,-200.0,0.00013155,2]
[338406901,1726600240078,-427.94,0.000132,2]
[338406902,1726600240088,-150.0,0.000132,2]
[338406904,1726600240097,-752.99,0.000132,2]
[338406906,1726600240107,-357.82,0.000132,2]
[338406907,1726600240116,-200.0,0.00013287,2]
[338406908,1726600240126,-200.0,0.00013287,2]
[338406910,1726600240136,-167.0,0.00013316,2]
[338406912,1726600240145,-3288.865,0.00013363,2]
[338406913,1726600240155,-3400.07,0.00013402,2]
[338406915,1726600240164,-1402.3649,0.0001342,2]
[338406917,1726600240173,-167.0,0.00013472,2]
[338406919,1726600240182,-150.0,0.00013488,2]
[338406921,1726600240192,-722.52382964,0.0001349,2]
[338406924,1726600240202,-1000.0,0.000135,2]
[338406927,1726600240212,-1000.0,0.000135,2]
[338406929,1726600240222,-1000.0,0.000135,2]
[338406931,1726600240231,-1000.0,0.000135,2]
[338406933,1726600240240,-1000.0,0.000135,2]
[338406935,1726600240250,-1000.0,0.000135,2]
[338406937,1726600240259,-1000.0,0.000135,2]
[338406939,1726600240269,-1000.0,0.000135,2]
[338406941,1726600240279,-1000.0,0.000135,2]
[338406943,1726600240288,-1000.0,0.000135,2]
[338406945,1726600240298,-1000.0,0.000135,2]
[338406947,1726600240307,-1000.0,0.000135,2]
[338406949,1726600240317,-1000.0,0.000135,2]
[338406951,1726600240327,-1000.0,0.000135,2]
[338406953,1726600240336,-1000.0,0.000135,2]
[338406955,1726600240346,-677.0,0.000135,2]
[338406956,1726600240355,-887.19,0.00013534,2]
[338406957,1726600240365,-23880.0,0.00013534,2]
[338406958,1726600240375,-5768.58822121,0.000136,2]
[338406959,1726600240385,-500.0,0.0001369,2]
[338406960,1726600240395,-500.0,0.0001369,2]
[338406961,1726600240404,-500.0,0.0001369,2]
[338406962,1726600240414,-500.0,0.0001369,2]
[338406963,1726600240424,-500.0,0.0001369,2]
[338406964,1726600240433,-500.0,0.0001369,2]
[338406965,1726600240447,-500.0,0.0001369,2]
[338406966,1726600240463,-500.0,0.0001369,2]
[338406967,1726600240473,-646.46,0.0001369,2]
[338406968,1726600240483,-500.0,0.0001369,2]
[338406969,1726600240495,-500.0,0.0001369,2]
[338406970,1726600240505,-500.0,0.0001369,2]
[338406971,1726600240516,-500.0,0.0001369,2]
[338406972,1726600240525,-500.0,0.0001369,2]
[338406973,1726600240535,-500.0,0.0001369,2]
[338406974,1726600240546,-588.07,0.0001369,2]
[338406975,1726600240556,-251.74,0.0001369,2]
[338406976,1726600240566,-377.83,0.0001369,2]
[338406977,1726600240577,-203.22,0.00013699,2]
[338406978,1726600240586,-150.02,0.00013699,2]
[338406979,1726600240596,-746.3,0.000137,2]
[338406980,1726600240605,-28744.5809,0.000137,2]
[338406981,1726600240615,-500.0,0.000137,2]
[338406982,1726600240624,-5768.58822118,0.00013744,2]
[338406983,1726600240633,-5768.58822118,0.00013889,2]
[338406984,1726600240643,-173.83,0.0001389,2]
[338406985,1726600240653,-600.0,0.000139,5]
[338406986,1726600240663,-420.0,0.00013911,2]
[338406987,1726600240673,-1000.0,0.0001397,2]
[338406988,1726600240682,-500.0,0.0001397,2]
[338406989,1726600240696,-167.0,0.00013985,2]
[338406990,1726600240706,-1000.0,0.00014,14]
[338406991,1726600240715,-17302.17525079,0.00014,5]
[338406992,1726600240725,-324.28736083,0.00014,3]
[338406993,1726600240735,-1300.0,0.00014,5]
[338406994,1726600240744,-5768.58822118,0.00014033,2]
[338406995,1726600240753,-1402.36491,0.0001405,2]
[338406996,1726600240763,-255.0,0.00014071,2]
[338406997,1726600240772,-2000.0,0.000141,5]
[338406998,1726600240782,-160.0,0.00014149,2]
[338406999,1726600240791,-361.81,0.00014173,2]
[338407000,1726600240803,-5768.58822118,0.00014178,2]
[338407001,1726600240812,-2600.0,0.000142,5]
[338407002,1726600240821,-251.053883,0.00014247,2]
[338407003,1726600240831,-1000.0,0.000143,3]
[338407004,1726600240840,-3300.0,0.000143,5]